Cogmind - Beta 16 @@@ ROGUE MODE // 2025.12.08 @ 18:22:32 Player: C0-2MO Result: Destroyed by Cetus Guard with Advanced KE Penetrator Performance ------------- Evolutions (5) 2500 Regions Visited (13) 2600 Robots Destroyed (87) 435 Value Destroyed (3044) 3044 Prototype IDs (42) 840 Alien Tech Used (0) 0 Bonus (3625) 3625 TOTAL SCORE: 13044 Bonus ------- High Alert Combat Kills 561 Follower Combat Kills 1574 Entered Garrisons 200 Used RIF Installer 500 Registered with UFD 300 Met Optimus in HQ 500 Friendly Fire -10 Cogmind --------- Core Integrity 0/1000 Matter 268/300 Energy 100/100 System Corruption 0% Temperature Cool (18) Movement Walking (120) Location -5/Cetus Parts ------- > --- POWER (2) -------- (None) > --- PROPULSION (6) --- Carbon-fiber Leg > --- UTILITY (7) ------ Enhanced Optical Array Experimental Signal Interpreter Improved System Shield Relay Coupler [NC] (21) Advanced Trap Extractor (0/8) > --- WEAPON (2) ------- Coil Gun Phasing Sabre > --- INVENTORY (5) ---- Deep Structural Scanner Precision Matter Filter Coil Gun Coil Gun Improved Remote Datajack Peak State ------------ > --- POWER ------------ Light Deuterium Engine Light Fission Core > --- PROPULSION ------- Cooled Cesium-ion Thruster Cooled Cesium-ion Thruster Cooled Cesium-ion Thruster Nuclear Pulse Array Q-thruster > --- UTILITY ---------- Medium Storage Unit Enhanced Optical Array Improved Sensor Array Experimental Signal Interpreter Precision Matter Filter Hacking Suite Improved System Shield > --- WEAPON ----------- Thunder Hammer Axe > --- INVENTORY -------- Field Propulsion Drive Experimental Heat Sink Deep Structural Scanner Improved Propulsion Shielding Authchip [Propulsion] Relay Coupler [NC] Relay Coupler [NC] Advanced System Restoration Module Advanced Trap Extractor Hypervelocity Gauss Cannon [Rating: 92] Favorites ----------- Power Light Fission Core Engine Light Deuterium Engine Power Core Light Fission Core Reactor Light Particle Reactor Propulsion Cooled Cesium-ion Thruster Treads Light Treads Leg Carbon-fiber Leg Wheel Compact Wheel Hover Unit Gravmag Array Flight Unit Cooled Cesium-ion Thruster Utility Enhanced Optical Array Device Structural Scanner Storage Medium Storage Unit Processor Enhanced Optical Array Hackware Improved System Shield Protection Improved Propulsion Shielding Weapon Axe Energy Gun Gatling Laser Ballistic Gun Improved Assault Rifle Launcher Smartbomb Launcher Special Weapon Remote Datajack Impact Weapon Heavy Hammer Slashing Weapon Axe Special Melee Weapon Improved Datajack Build | -11 -10 -10 -8 -8 -6 -6 -6 -6 -5 -5 -5 -5 -5 ------- Run | Yrd Mat Sub Rec Scr Fac Was Fac Gar Fac Was Fac Ext Cet Slots Evolved 10 | . . . . . 8 . . . 2 . . . . Power 1 | . . . . . . . . . 1 . . . . Propulsion 4 | . . . . . 4 . . . . . . . . Utility 5 | . . . . . 4 . . . 1 . . . . Weapon . | . . . . . . . . . . . . . . Parts Attached 104 | 7 9 6 . 5 11 6 14 1 11 . 17 16 1 Power 12 | . . 1 . 1 . 1 1 . . . 5 3 . Engine 3 | . . 1 . 1 . 1 . . . . . . . Core 8 | . . . . . . . 1 . . . 4 3 . Reactor 1 | . . . . . . . . . . . 1 . . Propulsion 32 | 2 4 2 . . 4 3 5 . 5 . . 7 . Treads 4 | 1 1 . . . 2 . . . . . . . . Leg 7 | . . . . . . . . . . . . 7 . Wheel 6 | 1 3 2 . . . . . . . . . . . Hover 2 | . . . . . 2 . . . . . . . . Flight 13 | . . . . . . 3 5 . 5 . . . . Utility 37 | 3 2 1 . 2 5 2 6 1 3 . 9 3 . Device 17 | 2 1 . . . 1 1 2 . 3 . 5 2 . Storage 5 | 1 1 . . 1 1 . . . . . 1 . . Processor 3 | . . . . . 1 . 2 . . . . . . Hackware 5 | . . . . . 1 . 2 . . . 2 . . Protection 7 | . . 1 . 1 1 1 . 1 . . 1 1 . Artifact . | . . . . . . . . . . . . . . Weapon 23 | 2 3 2 . 2 2 . 2 . 3 . 3 3 1 Energy Gun 2 | 1 . . . . 1 . . . . . . . . Energy Cannon . | . . . . . . . . . . . . . . Ballistic Gun 8 | 1 2 1 . 1 1 . . . . . . 1 1 Ballistic Cannon . | . . . . . . . . . . . . . . Launcher 1 | . . . . . . . . . . . 1 . . Special Weapon 3 | . . . . . . . 1 . 1 . 1 . . Impact Weapon 2 | . . 1 . . . . . . 1 . . . . Slashing Weapon 4 | . . . . 1 . . . . 1 . . 2 . Piercing Weapon . | . . . . . . . . . . . . . . Special Melee Weapon 3 | . 1 . . . . . 1 . . . 1 . . Unidentified Prototypes 8 | . 1 . . . . . 1 . 3 . 3 . . Parts Lost 34 | . . 1 . . 1 . 2 1 3 . 7 13 6 Power 7 | . . . . . 1 . . . . . 3 2 1 Propulsion 15 | . . . . . . . 2 1 1 . 1 7 3 Utility 10 | . . 1 . . . . . . 1 . 3 3 2 Weapon 2 | . . . . . . . . . 1 . . 1 . Highest Loss Streak 4 | . . 1 . . 1 . 1 1 1 . 2 4 3 To Critical Strikes 2 | . . . . . . . . . . . . . 2 Average Backups 10 | 4 9 14 15 11 14 9 9 10 9 10 9 9 8 Power 1 | 1 2 2 2 2 2 1 1 1 . . . . . Propulsion . | 1 2 4 4 . . . . . . 1 . . . Utility 5 | . 2 3 4 4 6 6 6 7 7 8 7 7 5 Weapon 1 | . 1 2 4 2 3 1 1 1 1 1 . . 2 Tool/Special . | . . . . . . . . . . . . . . Unused Backups 30 | . 1 . . 6 2 1 5 1 6 . 1 1 6 Power 4 | . . . . 3 . 1 . . . . . . . Propulsion 3 | . . . . 1 . . . . 2 . . . . Utility 12 | . . . . 1 1 . 3 1 1 . . 1 4 Weapon 9 | . 1 . . 1 1 . 2 . 2 . 1 . 1 Tool/Special 2 | . . . . . . . . . 1 . . . 1 Average Slot Usage (%) 86 | . 75 89 100 92 69 86 91 92 93 94 86 81 74 Engine 3 | . . 3 14 13 5 6 . . 4 5 1 . . Core 2 | . . . . . . . 5 6 5 5 3 6 4 Treads 2 | . 5 21 2 . 2 . . . . . . . . Leg 1 | . . . . . . . . . . . . 8 20 Wheel 8 | . 22 6 26 26 5 . . . . . . . . Flight 14 | . . . . . . 13 31 32 28 29 28 18 . Device 7 | . 5 9 14 9 11 13 7 . 8 11 6 4 6 Storage 8 | . 14 14 14 13 6 6 6 6 5 5 5 5 3 Processor 6 | . . . . . 2 6 10 13 11 11 11 11 11 Hackware 6 | . . . . . 5 6 11 13 11 11 11 11 11 Protection 2 | . . 4 . 4 8 5 1 5 1 . 1 1 2 Ballistic Gun 7 | . 23 24 14 11 2 . . . . . . 1 8 Impact Weapon 1 | . . 3 14 8 . . . . . 5 . . . Slashing Weapon 3 | . . . . 4 3 6 6 6 5 5 4 5 1 Special Melee Weapon 1 | . . . . . . 1 5 . . . 2 . . Peak Build Rating 92 | 6 11 13 12 14 49 68 67 64 90 90 92 81 68 Average Rating 46 | 4 8 11 11 11 38 58 62 62 83 90 80 70 61 On Entrance 43 | . 6 11 11 12 14 46 62 64 62 90 90 79 67 Avg Prop Armor Cover (%) 7 | 15 13 14 . . 13 8 4 4 . . 1 7 . Naked Turns 45 | . . . . 45 . . . . . . . . . Heaviest Build 80 | 10 27 31 31 80 41 27 25 25 31 31 38 38 37 Greatest Support 110 | 10 26 40 40 36 30 30 34 28 41 39 40 110 70 Greatest Overweight (x) 3 | . 2 1 . 3 1 . . . . . . 1 . Average Overweight (x) . | . . . . . . . . . . . . . . Largest Inventory Capacity 25 | 8 15 15 15 25 15 10 10 10 10 10 15 10 10 Average Capacity 11 | 7 12 15 15 14 14 10 10 10 10 10 10 10 7 Most Carried 15 | 6 14 15 15 15 15 10 10 10 10 10 10 10 10 Average Carried 10 | 4 9 14 15 11 14 9 9 9 9 10 9 9 7 Final Capacity 15 | 8 15 15 15 15 10 10 10 10 10 10 10 10 5 Final Carried 15 | 6 14 15 15 15 10 10 10 10 10 10 7 10 5 Class Distribution -------------------- 42% | Mutant 9% | Hacker-Ninja 7% | Scavenger-Scout 6% | Scavenger-Mutant 6% | Scavenger-Sprinter 5% | Hacker-Scout 5% | Trapper-Mutant 4% | Trapper-Scout 4% | Sprinter 3% | Scout Dominant Class ---------------- Mutant | -10/Materials Mutant | -10/Subcaves Mutant | -8/Recycling Mutant | -8/Scraptown Mutant | -6/Factory Scavenger-Mutant | -6/Waste Scavenger-Scout | -6/Factory Scavenger-Sprinter | -6/Garrison Hacker-Ninja | -5/Factory Hacker-Ninja | -5/Waste Sprinter | -5/Factory Trapper-Mutant | -5/Extension Mutant | -5/Cetus Resources | -11 -10 -10 -8 -8 -6 -6 -6 -6 -5 -5 -5 -5 -5 ----------- Run | Yrd Mat Sub Rec Scr Fac Was Fac Gar Fac Was Fac Ext Cet Matter Collected 2664 | 312 387 282 68 120 135 50 236 45 150 . 456 423 . Remotely 88 | 78 . . . . . . . . . . . 10 . Salvage Created 3513 | 126 654 205 77 . 259 . 480 . 384 . 419 845 64 Parts 181 | 11 43 16 1 . 11 . 23 . 16 . 30 28 2 Haulers Intercepted 2 | . . . . . . . 1 . 1 . . . . Recyclers Shooed 5 | . 1 . . . . . . . . . 1 3 . Parts Field Recycled . | . . . . . . . . . . . . . . Retrieved Matter . | . . . . . . . . . . . . . . Parts Self-Destructed 7 | . . 7 . . . . . . . . . . . Prevented . | . . . . . . . . . . . . . . Parts Restored . | . . . . . . . . . . . . . . Kills | -11 -10 -10 -8 -8 -6 -6 -6 -6 -5 -5 -5 -5 -5 ------- Run | Yrd Mat Sub Rec Scr Fac Was Fac Gar Fac Was Fac Ext Cet Combat Hostiles Destroyed 52 | . 13 7 . . 2 . 3 . . . 19 8 . Melee 14 | . . . . . 2 . 3 . . . 2 7 . Guns 20 | . 13 7 . . . . . . . . . . . AOE 18 | . . . . . . . . . . . 17 1 . Classes Destroyed 13 | 2 4 1 1 . 1 . 1 . 1 . 1 1 . Worker 3 | . . . . . . . . . 2 . 1 . . Builder 1 | . . . 1 . . . . . . . . . . Tunneler 3 | 3 . . . . . . . . . . . . . Hauler 2 | . . . . . . . 1 . 1 . . . . Recycler 11 | 1 3 . . . 1 . 2 . 1 . 1 2 . Operator 4 | . 2 . . . . . 1 . . . . 1 . Watcher 10 | . 2 . . . . . 1 . 4 . 2 1 . Swarmer 26 | . 6 3 . . . . 2 . . . 15 . . Grunt 11 | . 7 . . . . . 1 . . . . 3 . Sentry 5 | . . . . . 2 . . . . . . 3 . Hunter 2 | . . . . . . . . . . . . 2 . Programmer 4 | . . . . . . . . . . . 4 . . Subdweller 4 | . . 4 . . . . . . . . . . . Thug 1 | . . . . . . . . . . . . . 1 Best Kill Streak 8 | 3 8 2 1 . 1 . 2 . 3 . 7 1 . Combat Bots Only 7 | . 5 2 . . 1 . 2 . . . 7 1 . Max Kills in Single Turn 7 | 1 2 1 1 . 1 . 1 . 1 . 7 1 1 Gunslinging 1 | . 1 . . . . . . . . . . . . Exploded 7 | . . . . . . . . . . . 7 1 . Melee 1 | . . . . . 1 . 1 . . . 1 1 . Uniques/NPCs Destroyed . | . . . . . . . . . . . . . . Combat | -11 -10 -10 -8 -8 -6 -6 -6 -6 -5 -5 -5 -5 -5 -------- Run | Yrd Mat Sub Rec Scr Fac Was Fac Gar Fac Was Fac Ext Cet Hostile Shots Fired 511 | . 45 55 . . 78 . 27 23 25 . 139 97 22 Missed 207 | . 15 15 . . 21 . 18 13 12 . 74 36 3 Hits 304 | . 30 40 . . 57 . 9 10 13 . 65 61 19 Projectile 304 | . 30 40 . . 57 . 9 10 13 . 65 61 19 Critical Strikes 6 | . . . . . . . . . 1 . 1 . 4 Damage Taken 5199 | . 305 665 . . 412 24 260 179 255 . 1219 1365 515 Core 1429 | . 82 148 . . 51 24 61 49 46 . 374 463 131 Absorbed by Shields 84 | . . . . . . . . 31 . . . 53 . Redirected to Shielding 240 | . . . . . . . 57 40 41 . 80 22 . Regen/Repaired (Parts) 289 | . 110 . . . . 30 55 . 19 . 75 . . Core Remaining (%) 62 | 100 . . . 8 . . . 78 . . . . . Volleys Fired 151 | 14 50 36 6 . 1 7 . 7 1 . 15 10 4 Largest 2 | 2 2 2 1 . 1 1 . 1 1 . 1 1 2 Hottest 80 | 70 70 53 30 . 80 80 . 5 5 . 46 30 60 Shots Fired 252 | 28 100 69 6 . 1 7 . 7 1 . 15 10 8 Gun 229 | 28 100 69 6 . 1 7 . . . . . 10 8 Cannon . | . . . . . . . . . . . . . . Launcher 15 | . . . . . . . . . . . 15 . . Special 8 | . . . . . . . . 7 1 . . . . Kinetic 186 | 14 79 69 6 . . . . . . . . 10 8 Thermal 43 | 14 21 . . . 1 7 . . . . . . . Explosive 15 | . . . . . . . . . . . 15 . . Electromagnetic . | . . . . . . . . . . . . . . Robot Hit Streak 17 | 9 8 17 . . 2 6 . 6 7 . 14 3 6 Robot Miss Streak 7 | 2 7 3 . . 1 5 . 1 . . . 2 1 Penetration Max . | . . . . . . . . . . . . . . Secondary Targets 3 | . 2 1 . . . . . . . . . . . Max Gunslinging Chain 1 | . 1 1 . . . . . . . . . . . Shots Hit Robots 277 | 19 54 49 4 . 10 6 14 8 10 . 29 64 10 Core Hits 121 | 5 28 11 . . 6 1 6 1 7 . 32 20 4 Critical Kills 1 | . . 1 . . . . . . . . . . . Critical Parts Destroyed . | . . . . . . . . . . . . . . Critical Strikes 16 | 1 2 3 . . . . 1 . . . 2 7 . Burn 3 | 1 2 . . . . . . . . . . . . Destroy 3 | . . 3 . . . . . . . . . . . Sever 10 | . . . . . . . 1 . . . 2 7 . Melee Attacks 342 | . . 7 9 . 17 . 58 41 47 . 73 84 6 Impact 17 | . . 7 9 . . . . . 1 . . . . Slashing 297 | . . . . . 17 . 57 41 46 . 65 65 6 Piercing . | . . . . . . . . . . . . . . Sneak Attacks 39 | . . . 1 . 1 . 4 . 4 . 6 23 . Combat Hostiles 1 | . . . . . . . . . . . . 1 . Follow-up Attacks 1 | . . . . . . . . . . . . 1 . Damage Inflicted 9085 | 230 730 865 261 . 331 170 734 70 544 . 2799 2056 295 Guns 2318 | 230 730 865 . . 20 170 . . . . . 129 174 Cannons . | . . . . . . . . . . . . . . Explosions 2199 | . . . . . . . . . . . 2117 82 . Melee 4568 | . . . 261 . 311 . 734 70 544 . 682 1845 121 Ramming . | . . . . . . . . . . . . . . Kinetic 1853 | 106 579 865 . . . . . . . . . 129 174 Thermal 547 | 124 151 . . . 20 170 . . . . . 82 . Explosive 2117 | . . . . . . . . . . . 2117 . . Electromagnetic . | . . . . . . . . . . . . . . Impact 261 | . . . 261 . . . . . . . . . . Slashing 4307 | . . . . . 311 . 734 70 544 . 682 1845 121 Piercing . | . . . . . . . . . . . . . . Highest Corruption 3 | . . . . . . . 1 . . . 3 3 . Average Corruption 1 | . . . . . . . 1 . . . 2 2 . Corruption Purged 4 | . . . . . . . 1 . . . . 3 . Corruption Blocked . | . . . . . . . . . . . . . . Effects 13 | . . . . . . . 6 . . . 5 2 . Message Errors 1 | . . . . . . . . . . . 1 . . Matter Fused 3 | . . . . . . . 3 . . . . . . Heat Flow Errors 3 | . . . . . . . . . . . 2 1 . Energy Discharges 1 | . . . . . . . . . . . 1 . . Data Loss (minor) 3 | . . . . . . . 2 . . . . 1 . Data Loss (major) 1 | . . . . . . . 1 . . . . . . Alerts 1 | . . . . . . . . . . . 1 . . Overload Shots . | . . . . . . . . . . . . . . Overflow Damage 624 | . . . 81 . . . 105 . 61 . 152 225 . Projectiles . | . . . . . . . . . . . . . . Explosions 89 | . . . . . . . . . . . 80 9 . Melee 535 | . . . 81 . . . 105 . 61 . 72 216 . Knockbacks 1 | . . . 1 . . . . . . . . . . Impact 1 | . . . 1 . . . . . . . . . . Kinetic . | . . . . . . . . . . . . . . Secondary . | . . . . . . . . . . . . . . Self-Inflicted Damage . | . . . . . . . . . . . . . . Shots . | . . . . . . . . . . . . . . Rammed . | . . . . . . . . . . . . . . Targets Rammed . | . . . . . . . . . . . . . . Kicked . | . . . . . . . . . . . . . . Crushed . | . . . . . . . . . . . . . . Highest Temperature 188 | . 31 . . . 28 171 14 . 35 4 165 188 . Average Temperature 23 | . 15 . . . 15 80 9 . 11 2 26 60 . Received Heat Transfer 815 | . 114 30 . . 108 9 30 27 36 . 120 314 27 Siege Activations . | . . . . . . . . . . . . . . Martial Activations . | . . . . . . . . . . . . . . Shielding Activations . | . . . . . . . . . . . . . . Robots Disrupted . | . . . . . . . . . . . . . . Combat Hostiles . | . . . . . . . . . . . . . . Robots Corrupted 2 | . . . 2 . . . . . . . . . . Combat Hostiles . | . . . . . . . . . . . . . . Parts Fried 4 | . . . 3 . . . . . . . . 1 . Impact Corruptions 5 | . . . 5 . . . . . . . . . . Robots Melted . | . . . . . . . . . . . . . . Combat Hostiles . | . . . . . . . . . . . . . . Parts Melted 2 | . 1 1 . . . . . . . . . . . Heat Transferred 1536 | 444 592 . . . 50 400 . . . . . 50 . Parts Sabotaged . | . . . . . . . . . . . . . . Parts Stolen . | . . . . . . . . . . . . . . Parts Stripped . | . . . . . . . . . . . . . . Power Chain Reactions . | . . . . . . . . . . . . . . Alert | -11 -10 -10 -8 -8 -6 -6 -6 -6 -5 -5 -5 -5 -5 ------- Run | Yrd Mat Sub Rec Scr Fac Was Fac Gar Fac Was Fac Ext Cet Maximum Alert Level 4 | . . . . . . . 2 3 2 . 4 3 2 Low Security (%) 49 | 100 100 . 100 . 100 100 13 . 63 100 44 . . Level 1 10 | . . . . . . . 36 12 32 . 4 . . Level 2 19 | . . . . . . . 50 83 3 . 15 13 100 Level 3 16 | . . . . . . . . 4 . . 10 86 . Level 4 3 | . . . . . . . . . . . 24 . . Level 5 . | . . . . . . . . . . . . . . High Security . | . . . . . . . . . . . . . . Max Security . | . . . . . . . . . . . . . . Peak Influence 1375 | 10 185 . 58 . 50 23 546 708 536 187 1375 1036 575 Initial 651 | . . . 8 . . . . 370 366 187 130 651 575 Average 364 | 2 102 . 23 . 6 3 339 497 191 187 548 871 522 Influence Increases 6701 | 20 548 70 76 . 71 57 1171 378 982 . 1944 1317 67 Destroy 0b10 Robot/C 1780 | . 260 60 . . 40 . 340 20 . . 380 680 . Destroy 0b10 Robot/NC 190 | 20 35 . 10 . 5 . 40 . 40 . 20 20 . Destroy Leader 356 | . 54 10 . . 20 . 96 . 10 . 64 102 . Allied During Kill 431 | . . . . . . . 198 5 . . . 228 . Trap Triggered on 0b10 70 | . . . . . . . 10 . . . . 10 50 Successful Hack 478 | . 77 . . . . . 109 . 137 . 97 58 . Select Force Hacks 150 | . 60 . 60 . . . 30 . . . . . . Disable Machine 135 | . . . . . . . 60 . 15 . 45 15 . Anti-Garrison Action 150 | . . . . . . . . 150 . . . . . Destroy Structure 711 | . 2 . 6 . 6 57 48 98 60 . 378 54 2 Partial Spotted 270 | . 15 . . . . . 75 . 45 . 105 30 . Lose Combat Pursuer 1980 | . 45 . . . . . 165 105 675 . 855 120 15 Influence Decreases 6199 | 20 484 116 94 . 71 57 642 209 1144 349 802 1618 593 Entered New Map 2070 | . . 32 10 . . . . 159 332 349 57 678 453 Time Decay 2489 | 20 484 84 84 . 71 50 410 . 342 . 434 470 40 Search Patrol Dispatched 200 | . . . . . . . . . 100 . 100 . . Lost Part 301 | . . . . . . . 20 10 30 . 51 130 60 Lost Ally 709 | . . . . . . 7 212 40 40 . 30 340 40 Purge Threat 430 | . . . . . . . . . 300 . 130 . . Squads Dispatched 45 | . 4 . . . 2 . 13 . 11 . 14 1 . Investigation 27 | . 2 . . . 1 . 7 . 8 . 8 1 . Extermination 8 | . . . . . . . 3 . 2 . 3 . . Reinforcement 8 | . 2 . . . 1 . 1 . 1 . 3 . . Assault 2 | . . . . . . . 2 . . . . . . Garrison . | . . . . . . . . . . . . . . Intercept . | . . . . . . . . . . . . . . Searches Triggered 2 | . . . . . . . . . 1 . 1 . . Construction Impeded . | . . . . . . . . . . . . . . Haulers Reinforced . | . . . . . . . . . . . . . . Active Scanning Responses . | . . . . . . . . . . . . . . Cargo Convoy Interrupts 1 | . . . . . . . . . . . 1 . . Stealth | -11 -10 -10 -8 -8 -6 -6 -6 -6 -5 -5 -5 -5 -5 --------- Run | Yrd Mat Sub Rec Scr Fac Was Fac Gar Fac Was Fac Ext Cet Distress Signals 15 | . 3 . . . . . 1 . 3 . 7 . 1 Communications Jammed . | . . . . . . . . . . . . . . Distress Signals . | . . . . . . . . . . . . . . Times Spotted 285 | . 22 9 . . 5 4 28 12 55 4 95 45 6 Peak Tracking Total 13 | . 5 3 . . 3 2 5 4 13 4 12 5 5 Tactical Retreats 55 | . 3 . . . . . 7 3 13 . 20 8 1 Traps | -11 -10 -10 -8 -8 -6 -6 -6 -6 -5 -5 -5 -5 -5 ------- Run | Yrd Mat Sub Rec Scr Fac Was Fac Gar Fac Was Fac Ext Cet Traps Triggered 8 | . 1 . . . 1 . 1 2 1 . 2 . . Indirectly . | . . . . . . . . . . . . . . Trap Hack Attempts 319 | . 85 . . . . . 112 . . . 122 . . Triggered 1 | . . . . . . . . . . . 1 . . Disarmed 1 | . . . . . . . . . . . 1 . . Reprogrammed 31 | . 5 . . . . . 8 . . . 10 8 . Reused 7 | . . . . . . . 1 . . . . 1 5 Traps Extracted 12 | . . . . . . . 4 . . . 8 . . Installed 5 | . . . . . . . . . . . . . 5 Triggered 7 | . . . . . . . 1 . . . . 1 5 Most Traps Carried 8 | . . . . . . . 4 4 4 . 8 8 8 Machines | -11 -10 -10 -8 -8 -6 -6 -6 -6 -5 -5 -5 -5 -5 ---------- Run | Yrd Mat Sub Rec Scr Fac Was Fac Gar Fac Was Fac Ext Cet Machines Disabled 15 | . . . . . . . 4 3 1 . 3 4 . Max in Single Turn 1 | . . . . . . . 1 1 1 . 1 1 . Garrison Access 5 | . . . . . 1 . . . 2 . 2 . . Garrison Relay 3 | . . . . . . . . 3 . . . . . Energy Cycler 1 | . . . . . . . . . . . . 1 . Machines Repaired . | . . . . . . . . . . . . . . Machines Dismantled . | . . . . . . . . . . . . . . Machines Sabotaged . | . . . . . . . . . . . . . . Overloaded Fab Kills . | . . . . . . . . . . . . . . Hacking | -11 -10 -10 -8 -8 -6 -6 -6 -6 -5 -5 -5 -5 -5 --------- Run | Yrd Mat Sub Rec Scr Fac Was Fac Gar Fac Was Fac Ext Cet Machines Accessed 109 | . 9 . 3 2 2 . 27 1 31 . 23 11 . Terminals 64 | . 6 . 1 . . . 14 1 18 . 13 11 . Fabricators 4 | . . . . . . . 2 . 1 . 1 . . Repair Stations 6 | . 1 . . . . . 1 . 1 . 3 . . Recycling Units 18 | . 2 . 2 . 1 . 4 . 5 . 4 . . Scanalyzers 7 | . . . . . . . 3 . 4 . . . . Garrison Access 8 | . . . . . 1 . 3 . 2 . 2 . . Total Hacks 338 | . 28 . 5 19 5 . 92 3 105 . 56 25 . Successful 212 | . 18 . 4 19 2 . 60 1 61 . 32 15 . Failed 125 | . 10 . 1 . 3 . 31 2 44 . 24 10 . Catastrophic 14 | . 1 . 1 . . . 3 1 1 . 5 2 . Database Lockouts 1 | . . . . . . . 1 . . . . . . Manual 189 | . 21 . 5 . 3 . 48 1 58 . 39 14 . Terminals 220 | . 22 . 3 . . . 56 3 73 . 38 25 . Fabricators 11 | . . . . . . . 5 . 2 . 4 . . Repair Stations 13 | . 4 . . . . . 2 . 1 . 6 . . Recycling Units 30 | . 2 . 2 . 3 . 6 . 11 . 6 . . Scanalyzers 32 | . . . . . . . 16 . 16 . . . . Garrison Access 13 | . . . . . 2 . 7 . 2 . 2 . . Terminal Hacks 68 | . 3 . . 19 . . 13 1 19 . 6 7 . Record 19 | . . . . 18 . . . . 1 . . . . Part Schematic 8 | . . . . . . . 2 . 6 . . . . Robot Analysis 2 | . 2 . . . . . . . . . . . . Prototype ID Bank 8 | . . . . . . . 2 . 4 . 2 . . Open Door 6 | . . . . . . . . . . . 1 5 . Branch Access Points 1 | . . . . . . . 1 . . . . . . Emergency Access Points 1 | . . . . . . . . 1 . . . . . Terminal Index 6 | . 1 . . . . . 1 . 3 . 1 . . Scanalyzer Index 1 | . . . . . . . 1 . . . . . . Alert Level 1 | . . . . . . . 1 . . . . . . Unreport Threat 2 | . . . . . . . . . 2 . . . . Locate Traps 2 | . . . . . . . 1 . . . 1 . . Reprogram Traps 2 | . . . . . . . . . . . . 2 . Extermination Status 1 | . . . . . . . . . 1 . . . . Hauler Manifests 1 | . . . . . . . 1 . . . . . . Registered Components 1 | . . . . . . . . . 1 . . . . Zone Layout 5 | . . . . . . . 3 . 1 . 1 . . Proto ID Catalog 1 | . . . . 1 . . . . . . . . . Fabricator Hacks 4 | . . . . . . . 3 . 1 . . . . Network Status 2 | . . . . . . . 1 . 1 . . . . Load Schematic 2 | . . . . . . . 2 . . . . . . Repair Station Hacks 8 | . 4 . . . . . 2 . . . 2 . . Scan Component 4 | . 2 . . . . . 1 . . . 1 . . Repair 4 | . 2 . . . . . 1 . . . 1 . . Recycling Unit Hacks . | . . . . . . . . . . . . . . Scanalyzer 26 | . . . . . . . 16 . 10 . . . . Insert Component 11 | . . . . . . . 7 . 4 . . . . Analyze 12 | . . . . . . . 7 . 5 . . . . Retrieve Study 3 | . . . . . . . 2 . 1 . . . . Garrison Access Hacks 6 | . . . . . 1 . 1 . 2 . 2 . . Unlock Access 1 | . . . . . . . 1 . . . . . . Seal Access 5 | . . . . . 1 . . . 2 . 2 . . Unauthorized Hacks 99 | . 11 . 4 . 1 . 25 . 29 . 21 8 . Terminals 77 | . 9 . 2 . . . 20 . 23 . 15 8 . Track 5 | . . . . . . . 2 . . . 3 . . Assimilate 10 | . . . . . . . 4 . 4 . 2 . . Botnet 33 | . 3 . 1 . . . 7 . 14 . 5 3 . Operators 1 | . . . . . . . 1 . . . . . . Skim 28 | . 6 . 1 . . . 6 . 5 . 5 5 . Fabricators 2 | . . . . . . . 2 . . . . . . Recompile 2 | . . . . . . . 2 . . . . . . Repair Stations 4 | . . . . . . . . . 1 . 3 . . Patch 4 | . . . . . . . . . 1 . 3 . . Recycling Units 16 | . 2 . 2 . 1 . 3 . 5 . 3 . . Tunnel 5 | . 2 . 2 . . . 1 . . . . . . Fedlink 11 | . . . . . 1 . 2 . 5 . 3 . . Scanalyzers . | . . . . . . . . . . . . . . Garrison Access . | . . . . . . . . . . . . . . Data Cores Recovered 1 | . . . . . . . . . . . . 1 . Used 1 | . . . . . . . . . . . . 1 . Hacking Detections 71 | . 6 . 1 . 1 . 19 1 25 . 13 5 . Full Trace Events 7 | . . . . . . . 2 . 2 . 2 1 . Feedback Events 1 | . . . . . . . . . . . 1 . . Corruption 1 | . . . . . . . . . . . 1 . . Feedback Blocked . | . . . . . . . . . . . . . . Robot Schematics Acquired . | . . . . . . . . . . . . . . Robots Built . | . . . . . . . . . . . . . . Authchips . | . . . . . . . . . . . . . . Time . | . . . . . . . . . . . . . . Total Robot Build Rating . | . . . . . . . . . . . . . . Part Schematics Acquired 17 | . . . . . . . 8 . 9 . . . . Parts Built . | . . . . . . . . . . . . . . Authchips . | . . . . . . . . . . . . . . Time . | . . . . . . . . . . . . . . Total Part Build Rating . | . . . . . . . . . . . . . . Part Studies Acquired 3 | . . . . . . . 2 . 1 . . . . Parts Repaired 4 | . 2 . . . . . 1 . . . 1 . . Time 247 | . 102 . . . . . 95 . . . 50 . . Parts Recycled . | . . . . . . . . . . . . . . Recycled Matter . | . . . . . . . . . . . . . . Retrieved Matter . | . . . . . . . . . . . . . . Retrieved Components . | . . . . . . . . . . . . . . Parts Scanalyzed 10 | . . . . . . . 6 . 4 . . . . Part Schematics Acquired 9 | . . . . . . . 6 . 3 . . . . Parts Damaged 3 | . . . . . . . . . 3 . . . . Bothacking | -11 -10 -10 -8 -8 -6 -6 -6 -6 -5 -5 -5 -5 -5 ------------ Run | Yrd Mat Sub Rec Scr Fac Was Fac Gar Fac Was Fac Ext Cet Used RIF Installer 1 | . . . . . . . . 1 . . . . . Robots Hacked 5 | . . . . . . . . . 1 . 3 1 . Non-combat 5 | . . . . . . . . . 1 . 3 1 . Combat . | . . . . . . . . . . . . . . Robot Hacks Applied 10 | . . . . . . . . . 1 . 8 1 . find_chute 1 | . . . . . . . . . 1 . . . . ignore_repairs 1 | . . . . . . . . . . . 1 . . purge_threat 1 | . . . . . . . . . . . 1 . . disarm_traps 2 | . . . . . . . . . . . 2 . . block_reporting 3 | . . . . . . . . . . . 2 1 . formatsys_low 2 | . . . . . . . . . . . 2 . . Relay Couplers Released 12 | . . . . . . . . 12 . . . . . Machine Destruction 12 | . . . . . . . . 12 . . . . . Attached 2 | . . . . . . . . . . . 2 . . Fabnet Peak Effective % . | . . . . . . . . . . . . . . Robots Rewired 20 | . . . . . . . . 2 . . . 18 . Allies Hacked 1 | . . . . . . . . . . . 1 . . Hacks Repelled . | . . . . . . . . . . . . . . Allies | -11 -10 -10 -8 -8 -6 -6 -6 -6 -5 -5 -5 -5 -5 -------- Run | Yrd Mat Sub Rec Scr Fac Was Fac Gar Fac Was Fac Ext Cet Total Allies 57 | . . . . . . 19 4 2 4 1 4 23 . Largest Group 19 | . . . . . . 19 13 2 2 1 1 8 3 Highest-Rated Group 684 | . . . . . . 684 505 233 36 31 26 335 76 Highest-Rated Ally 159 | . . . . . . 50 50 148 26 31 26 159 31 Total Orders 9 | . . . . . . . 6 . . . 2 . 1 STAY 5 | . . . . . . . 4 . . . 1 . . ROAM 1 | . . . . . . . . . . . . . 1 FOLLOW 3 | . . . . . . . 2 . . . 1 . . Ally Attacks 420 | . . . . . . 150 105 11 . . . 152 2 Total Damage 12560 | . . . . . . 5480 2557 587 . . . 3893 43 Kills 59 | . . . . . . 11 18 1 . . . 29 . Allies Corrupted 1 | . . . . . . . 1 . . . . . . Allies Melted 5 | . . . . . . . 2 2 . . . 1 . Intel | -11 -10 -10 -8 -8 -6 -6 -6 -6 -5 -5 -5 -5 -5 ------- Run | Yrd Mat Sub Rec Scr Fac Was Fac Gar Fac Was Fac Ext Cet Active Infowar (turns) 7452 | 15 557 423 203 770 501 244 1090 418 777 17 1147 1195 95 Optics 5173 | . . . . . 190 244 1090 418 777 17 1147 1195 95 Sensors 3909 | . . . . . 415 244 1014 46 756 17 789 628 . Terrain 14 | . . . . . . 14 . . . . . . . Structural 2521 | . 171 423 203 770 501 244 209 . . . . . . Seismic 401 | 15 386 . . . . . . . . . . . . Cloaking 871 | . . . . . . . . . 440 17 414 . . Robot Analysis Total 2 | . 2 . . . . . . . . . . . . Derelict Logs Recovered 3 | . . . . 3 . . . . . . . . . Drone Launches . | . . . . . . . . . . . . . . Drone Recoveries . | . . . . . . . . . . . . . . Exploration | -11 -10 -10 -8 -8 -6 -6 -6 -6 -5 -5 -5 -5 -5 ------------- Run | Yrd Mat Sub Rec Scr Fac Was Fac Gar Fac Was Fac Ext Cet Turns Passed 8942 | 110 1316 628 203 1201 501 244 1090 418 777 17 1147 1195 95 Spaces Moved 12346 | 59 988 336 152 1146 358 243 2147 631 2232 68 2667 1294 25 Core 90 | 2 . . . 88 . . . . . . . . . Treads 151 | . . 149 2 . . . . . . . . . . Legs 311 | . . . . . . . . . . . . 286 25 Wheels 2579 | 57 988 187 150 1058 139 . . . . . . . . Hover 513 | . . . . . 219 243 51 . . . . . . Flight 8702 | . . . . . . . 2096 631 2232 68 2667 1008 . Fastest Speed 22 | 50 80 115 105 50 56 56 22 25 25 25 25 26 120 Average Speed 48 | 78 91 135 105 100 103 56 28 25 25 25 25 49 120 Slowest Speed 190 | 80 115 160 160 135 106 56 56 28 32 25 28 190 120 Overloaded Moves . | . . . . . . . . . . . . . . Propulsion Burnouts . | . . . . . . . . . . . . . . Robots Hopped 59 | . . . . . . . 3 4 15 1 27 9 . Potential Cave-ins 2 | . . . . . . . . . . . 2 . . Cave-ins Triggered . | . . . . . . . . . . . . . . Exploration Rate (%) 54 | 4 97 32 23 82 14 88 62 72 71 71 54 84 10 Regions Visited 13 Branch Regions 5 Pre-discovered Areas 17 | . 4 . 2 4 . . 2 . 4 . 1 . . Known Exits Taken 4 | . . 1 . . . . 1 . . . 1 1 . Unknown Exits Taken 4 | 1 1 . 1 1 . . . . . . . . . Scrap Searched 5 | . . . . 5 . . . . . . . . . Spaces Dug 159 | . . 5 6 . 6 . 38 12 30 . 47 12 3 Terrain Destroyed 361 | . . 5 6 . 6 . 38 12 30 . 230 31 3 Melee 155 | . . 4 3 . 6 . 38 12 30 . 47 12 3 Projectile 4 | . . 1 3 . . . . . . . . . . AOE 202 | . . . . . . . . . . . 183 19 . Terrain Rammed . | . . . . . . . . . . . . . . Walls Destroyed . | . . . . . . . . . . . . . . Machines Disabled . | . . . . . . . . . . . . . . Actions | -11 -10 -10 -8 -8 -6 -6 -6 -6 -5 -5 -5 -5 -5 --------- Run | Yrd Mat Sub Rec Scr Fac Was Fac Gar Fac Was Fac Ext Cet Total 14475 | 91 1290 424 170 1198 458 342 2526 809 2344 66 2962 1724 71 Wait 884 | 6 141 29 . 2 53 78 176 103 44 . 33 191 28 Move 12224 | 58 987 335 151 1145 358 242 2140 624 2202 65 2616 1276 25 Hop 52 | . . . . . . . 3 2 15 1 23 8 . Pick Up 73 | 5 6 2 . 23 5 2 7 2 7 . 9 5 . Fast Attach 75 | 7 6 1 . 7 10 5 6 . 6 . 13 14 . Attach 33 | . . 2 . 4 2 2 2 . 3 . 15 3 . Detach 19 | 1 3 1 . 1 1 1 1 . 2 . 6 2 . Swap 67 | . 9 9 4 1 2 1 9 2 6 . 19 2 3 Drop 80 | . 3 2 . 15 9 4 12 2 11 . 16 6 . Fire 151 | 14 50 36 6 . 1 7 . 7 1 . 15 10 4 Melee 340 | . . 7 9 . 17 . 58 41 47 . 73 82 6 Ram . | . . . . . . . . . . . . . . Kick . | . . . . . . . . . . . . . . Crush . | . . . . . . . . . . . . . . Escape Stasis 26 | . . . . . . . . 26 . . . . . Rewire 127 | . . . . . . . . . . . 2 125 . Trap 324 | . 85 . . . . . 112 . . . 122 . 5 Miscellaneous . | . . . . . . . . . . . . . . Route ------- -11/Scrapyard -10/Materials (discovered 5 exits: *Mat x3 / [*Min] / [*Sub]) -10/Subcaves (discovered 3 exits: *Mat x2 / *Rec) -8/Recycling -8/Scraptown (discovered 2 exits: *Fac x2) -6/Factory (discovered 6 exits: Fac x4 / Low x2) -6/Waste -6/Factory (discovered 6 exits: *Fac x3 / *Low x2 / Gar) -6/Garrison (discovered 3 exits: *Fac x3) -5/Factory (discovered 7 exits: *Fac x4 / *Upp x2 / *Ext) -5/Waste -5/Factory (discovered 6 exits: *Fac x2 / *Upp x2 / *Ext x2) -5/Extension (discovered 2 exits: *Fac / *Cet) -5/Cetus History --------- Turn | Location | Event 12 | -11/Scrapyard | Discovered new exit (range 15) 111 | -11/Scrapyard | Entered Materials 307 | -10/Materials | Build established: Mutant 511 | -10/Materials | Discovered new exit (range 8) 604 | -10/Materials | Discovered new exit (range 7) 665 | -10/Materials | Discovered new exit (range 16) 711 | -10/Materials | Derelicts attacked the area 882 | -10/Materials | Repaired Imp. Assault Rifle 934 | -10/Materials | Repaired Imp. Assault Rifle 957 | -10/Materials | Discovered new exit (range 13) 1138 | -10/Materials | Learned location of 2 exits from Mines 1190 | -10/Materials | Learned location of 2 exits from Subcaves 1201 | -10/Materials | Learned location of Recycling (-8) 1218 | -10/Materials | Identified exit to Materials 1242 | -10/Materials | Learned Storage trap positions 1427 | -10/Materials | Entered Subcaves 1428 | -10/Subcaves | Approached by a straggling Scientist 1428 | -10/Subcaves | Identified exit to Materials 1429 | -10/Subcaves | Identified exit to Recycling 1626 | -10/Subcaves | Core integrity fell below 50% 1846 | -10/Subcaves | Core integrity fell below 20% 2055 | -10/Subcaves | Entered Recycling 2234 | -8/Recycling | Scanned before Scraplab entrance 2245 | -8/Recycling | Discovered new exit (range 11) 2248 | -8/Recycling | Entered Scraplab 2258 | -8/Recycling | Entered Scraptown 2336 | -8/Scraptown | Scanned Subdweller tech in exchange for log data 2339 | -8/Scraptown | Learned 8 Factory zone layouts 2340 | -8/Scraptown | Learned Research security intel 2341 | -8/Scraptown | Learned Factory emergency access door positions 2352 | -8/Scraptown | Discovered new exit (range 13) 2404 | -8/Scraptown | Heard Great Nut preacher, LISTEN AND RECITE! 2411 | -8/Scraptown | Visited Awakened 2427 | -8/Scraptown | Visited Cyclists 2442 | -8/Scraptown | Visited UFD Registry 2442 | -8/Scraptown | Registered with UFD as "Chainglider" 2462 | -8/Scraptown | Entered Cyclist Reading Room 2536 | -8/Scraptown | Guru changed UFD alias to "Chainface" 2814 | -8/Scraptown | Visited TADAMA 2831 | -8/Scraptown | Visited Shadow of the Wyrm 2838 | -8/Scraptown | Visited Spacefarers 2859 | -8/Scraptown | Visited The Evicted 2868 | -8/Scraptown | Visited SPCMW 2937 | -8/Scraptown | Visited Science Guys 2983 | -8/Scraptown | Visited Science Testing Area 3005 | -8/Scraptown | Visited DA-N13 Charitable Foundation 3010 | -8/Scraptown | Found DCF Scrap (29 items) 3048 | -8/Scraptown | Visited Scrapoid Research Area 3066 | -8/Scraptown | Visited Curators Association 3117 | -8/Scraptown | Visited Chapter 10 3134 | -8/Scraptown | Visited Cartography Club 3183 | -8/Scraptown | Learned location of Quarantine (-2) 3183 | -8/Scraptown | Learned 8 Materials zone layouts 3183 | -8/Scraptown | Learned 12 Research zone layouts 3183 | -8/Scraptown | Learned 16 Research zone layouts 3183 | -8/Scraptown | Learned 4 Access zone layouts 3183 | -8/Scraptown | Learned 12 Lower Caves zone layouts 3183 | -8/Scraptown | Learned 12 Upper Caves zone layouts 3183 | -8/Scraptown | Learned 20 Proximity Caves zone layouts 3183 | -8/Scraptown | Learned location of 1 exit from Factory 3183 | -8/Scraptown | Learned location of 3 exits from Factory 3183 | -8/Scraptown | Learned location of 2 exits from Research 3223 | -8/Scraptown | Released all parts (7) 3253 | -8/Scraptown | Found Deep Structural Scanner 3340 | -8/Scraptown | Visited Infowarlord's Domain 3347 | -8/Scraptown | Found Exp. Signal Interpreter 3406 | -8/Scraptown | Met Optimus 3406 | -8/Scraptown | Accepted into 0bPrime 3457 | -8/Scraptown | Discovered new exit (range 3) 3459 | -8/Scraptown | Entered Factory 3459 | -6/Factory | Evolved 8 slots: Propulsion x4, Utility x4 3460 | -6/Factory | Identified exit to Lower Caves 3461 | -6/Factory | Identified exit to Factory 3775 | -6/Factory | Loaded intel: 8 recycling unit locations 3844 | -6/Factory | Spotted B-75 Beast 3960 | -6/Factory | Sucked down chute 3960 | -6/Factory | Entered Waste 3973 | -6/Waste | Spotted C-40 Crusher 3973 | -6/Waste | Spotted C-40 Crusher 3986 | -6/Waste | Warlord forces began an assault 4000 | -6/Waste | Allies destroyed C-40 Crusher 4005 | -6/Waste | Allies destroyed C-40 Crusher 4028 | -6/Waste | Spotted C-40 Crusher 4042 | -6/Waste | Spotted C-40 Crusher 4047 | -6/Waste | Allies destroyed C-40 Crusher 4054 | -6/Waste | Allies destroyed C-40 Crusher 4076 | -6/Waste | Spotted C-40 Crusher 4077 | -6/Waste | Lost 4 allies 4085 | -6/Waste | Allies destroyed C-40 Crusher 4092 | -6/Waste | Discovered new exit (range 22) 4204 | -6/Waste | Entered Factory 4204 | -6/Factory | Accompanied by 13 allies 4332 | -6/Factory | Repaired Broken Adv. Corruption Screen? 4414 | -6/Factory | Found Prototype Processor 4447 | -6/Factory | Identified Exp. Targeting Computer 4544 | -6/Factory | Loaded intel: 8 recycling unit locations 4544 | -6/Factory | Learned location of Protoforge (-2) 4705 | -6/Factory | Central database locked down 4843 | -6/Factory | Discovered exit to Factory (range 7) 4904 | -6/Factory | First assault squad dispatched 4978 | -6/Factory | Learned Hub_04(d) garrison access intel 5024 | -6/Factory | Build established: Scavenger-Scout 5044 | -6/Factory | Learned location of 1 exit from Proximity Caves 5065 | -6/Factory | Learned location of 1 exit from Proximity Caves 5074 | -6/Factory | Learned 2 Lower Caves zone layouts 5075 | -6/Factory | Learned Hub_04(d) garrison access intel 5136 | -6/Factory | Discovered exit to Factory (range 8) 5168 | -6/Factory | Learned location of 1 exit from Upper Caves 5234 | -6/Factory | Discovered exit to Factory (range 9) 5272 | -6/Factory | Spotted B-75 Beast 5294 | -6/Factory | Identified exit to Garrison 5294 | -6/Factory | Entered Garrison 5310 | -6/Garrison | Triggered checkpoint 5345 | -6/Garrison | Garrison Relay disabled 5358 | -6/Garrison | Spotted B-86 Titan 5361 | -6/Garrison | Rewired B-75 Beast 5370 | -6/Garrison | Rewired B-90 Cyclops 5594 | -6/Garrison | Triggered checkpoint 5619 | -6/Garrison | Garrison Relay disabled 5635 | -6/Garrison | Build established: Scavenger-Sprinter 5639 | -6/Garrison | Garrison Relay disabled 5694 | -6/Garrison | Installed Relay Interface Framework 5712 | -6/Garrison | Entered Factory 5712 | -5/Factory | Evolved 2 slots: Power x1, Utility x1 5713 | -5/Factory | Identified exit to Factory 5713 | -5/Factory | Identified exit to Upper Caves 5778 | -5/Factory | Loaded intel: 8 recycling unit locations 5994 | -5/Factory | Discovered new exit (range 19) 6091 | -5/Factory | Identified exit to Extension 6103 | -5/Factory | Learned location of Warlord (-4) 6166 | -5/Factory | Learned location of Proximity Caves (-3) 6219 | -5/Factory | Learned location of 1 exit from Armory 6260 | -5/Factory | Learned Testing stockpile data 6293 | -5/Factory | Discovered exit to Factory (range 3) 6311 | -5/Factory | Build established: Hacker-Ninja 6312 | -5/Factory | Search patrols dispatched 6317 | -5/Factory | Learned Research scanalyzer intel 6331 | -5/Factory | Learned location of Armory (-4) 6392 | -5/Factory | Loaded intel: 27 terminal locations 6489 | -5/Factory | Manually triggered Chute Trap 6489 | -5/Factory | Sucked down chute 6489 | -5/Factory | Entered Waste 6490 | -5/Waste | Met a frightened Derelict 6495 | -5/Waste | Spotted C-40 Crusher 6496 | -5/Waste | Spotted C-40 Crusher 6501 | -5/Waste | Spotted C-40 Crusher 6501 | -5/Waste | Spotted C-40 Crusher 6502 | -5/Waste | Discovered new exit (range 10) 6502 | -5/Waste | Spotted C-40 Crusher 6502 | -5/Waste | Spotted C-40 Crusher 6506 | -5/Waste | Identified exit to Factory 6506 | -5/Waste | Entered Factory 6544 | -5/Factory | Discovered exit to Factory (range 11) 6611 | -5/Factory | Spotted B-75 Beast 6727 | -5/Factory | Repaired Broken Cld. Cesium-ion Thruster? 6743 | -5/Factory | Loaded intel: 56 interactive machine locations 6782 | -5/Factory | Loaded intel: 8 recycling unit locations 6812 | -5/Factory | Learned location of Upper Caves (-5) 6872 | -5/Factory | Learned Quarantine emergency access door positions 6922 | -5/Factory | Loaded intel: 88 trap records 6963 | -5/Factory | Learned Research terminal intel 7035 | -5/Factory | Learned Extension trap positions 7072 | -5/Factory | Discovered exit to Extension (range 18) 7073 | -5/Factory | Learned 4 Proximity Caves zone layouts 7122 | -5/Factory | Learned Research recycling unit intel 7245 | -5/Factory | Cargo convoy interrupted 7268 | -5/Factory | Discovered exit to Factory (range 5) 7309 | -5/Factory | Build established: Sprinter 7406 | -5/Factory | Search patrols dispatched 7492 | -5/Factory | Destroyed 7 combat bots 7636 | -5/Factory | Discovered exit to Extension (range 6) 7653 | -5/Factory | Entered Extension 7654 | -5/Extension | Loaded intel: 20 trap records 7724 | -5/Extension | Rescued a captive Derelict 7728 | -5/Extension | Rescued a captive Derelict 7917 | -5/Extension | Spotted B-75 Beast 7918 | -5/Extension | Rescued a captive Derelict 7920 | -5/Extension | Rescued A7 7944 | -5/Extension | Spotted B-75 Beast 7954 | -5/Extension | Allies destroyed B-75 Beast 7974 | -5/Extension | Allies destroyed B-75 Beast 7983 | -5/Extension | Lost 3 parts (2p1u) 8028 | -5/Extension | Disrupted transfer network 8159 | -5/Extension | Lost 6 allies 8177 | -5/Extension | Extracted ID and sensor layout for unrecognized location from A7's data core 8199 | -5/Extension | Discovered new exit (range 22) 8199 | -5/Extension | Discovered exit to Factory (range 21) 8214 | -5/Extension | Rescued a captive Derelict 8226 | -5/Extension | Rescued a captive Derelict 8285 | -5/Extension | Core integrity fell below 50% 8327 | -5/Extension | Lost 4 parts (3n1u) 8498 | -5/Extension | Energy Cycler disabled 8501 | -5/Extension | Rescued a captive Derelict 8504 | -5/Extension | Rescued a captive Derelict 8506 | -5/Extension | Lost 4 allies 8543 | -5/Extension | Learned location of 2 exits from Research 8585 | -5/Extension | Build established: Trapper-Mutant 8590 | -5/Extension | Core integrity fell below 20% 8843 | -5/Extension | Identified exit to Cetus 8848 | -5/Extension | Entered Cetus 8848 | -5/Cetus | Accompanied by 3 allies 8866 | -5/Cetus | Spotted Cetus Guard 8867 | -5/Cetus | Spotted Cetus Guard 8868 | -5/Cetus | Spotted Cetus Guard 8885 | -5/Cetus | Spotted Cetus Guard 8908 | -5/Cetus | Lost 3 allies 8933 | -5/Cetus | Lost 3 parts (1n2u) 8943 | -5/Cetus | Destroyed by Cetus Guard with Advanced KE Penetrator Last Messages --------------- Trap. 08897_ Installed Segregator Trap. 08898_ Penetrated by Slug. 08899_ Adv. Trap Extractor dropped Segregator Trap. 08900_ Installed Segregator Trap. 08900_ Carbon-fiber Leg destroyed. 08901_ Med. Storage Unit destroyed. 08902_ Penetrated by Slug. 08902_ Critical hit (Destroy). 08902_ Exp. Heat Sink destroyed. 08904_ Penetrated by Slug. 08929_ The unstable cave ceiling collapses. 08934_ Cetus Guard triggered Segregator Trap. 08934_ Arcs of energy rise from the floor. 08938_ Fission Core destroyed. 08943_ Flexi-carbon Leg destroyed. 08943_ Critical hit (Destroy). 08943_ Flexi-carbon Leg destroyed. 08943_ Penetrated by Slug. Map ----- +----------------------------------------------------+ | ????????????????????????????? | | ????????????????????????????? | | ????????????????????????????? | | ????????????????????????????? | | ????????????????????????????? | | ????????????????????????????? | | ????????????????????????????? | | ????????????????????????????? | | ????????????????????????????? | | ????????????????????????????? | | ????????????????????????????? | | ????????????????????????????? | | ????????????????????????????? | | ????????????????????????????? | | ????????????????????????????? | | ????????????????????????????? | | ????????????????????????????? | | ????????????????????????????? | | ????????????????????????????? | | ????????????????????????????? | | ????????????????????????????? | | ???????????????????#???? #?? | | ?#################;###; #"" | | ?# ! Y* = %= | | ?# !&!&&! = %!/ | | ?#!!@!Y YY [% | | ?## ##############"######"##? | | ??## #??????????????????????? | | ???###??????????????????????? | | ????????????????????????????? | | ????????????????????????????? | | ????????????????????????????? | | ????????????????????????????? | | ????????????????????????????? | | ????????????????????????????? | | ????????????????????????????? | | ????????????????????????????? | | ????????????????????????????? | | ????????????????????????????? | | ????????????????????????????? | | ????????????????????????????? | | ????????????????????????????? | | ????????????????????????????? | | ????????????????????????????? | | ????????????????????????????? | | ????????????????????????????? | | ????????????????????????????? | | ????????????????????????????? | | ????????????????????????????? | | ????????????????????????????? | +----------------------------------------------------+ Best States ------------- Heat Dissipation 66 Energy Generation 32 Energy Capacity 525 Matter Stores 300 Matter Capacity 300 Sight Range 22 Robot Scan Range 16 Terrain Scan Range 24 Terrain Scan Density 10 Cloak Strength 2 Armor Coverage 300 Propulsion Shielding 66 Evasion (%) 65 Recoil Reduction 2 Matter Filtering 50 Offensive Hacking 10 Defensive Hacking 22 Relay Coupler Types 1 Relay Coupler Value 28 Authchip Count 2 Trap Extractor Capacity 8 Item Schematics ----------------- Enh. Optical Array | -6/Factory | Hacked Exp. Signal Interpreter | -6/Factory | Scanalyzed Lrn. Terrain Scanner | -6/Factory | Scanalyzed System Restoration Module | -6/Factory | Scanalyzed Q-thruster | -6/Factory | Scanalyzed Imp. Propulsion Shielding | -6/Factory | Scanalyzed Imp. Trap Extractor | -6/Factory | Hacked CPS Tube | -6/Factory | Scanalyzed Adv. Cooling System | -5/Factory | Hacked Biomechanical Wings | -5/Factory | Scanalyzed Lrn. Missile Launcher | -5/Factory | Scanalyzed Cld. Cesium-ion Thruster | -5/Factory | Scanalyzed Field Propulsion Drive | -5/Factory | Hacked Force Lance | -5/Factory | Hacked Adv. Thermal Generator | -5/Factory | Hacked Adv. Remote Datajack | -5/Factory | Hacked Tri-rail Accelerator | -5/Factory | Hacked Robot Schematics ------------------ None Fabricated ------------ Nothing Repaired ---------- Imp. Assault Rifle | 56% | -10/Materials Imp. Assault Rifle | 65% | -10/Materials Adv. Corruption Screen | 52% | -6/Factory | Broken Cld. Cesium-ion Thruster | 99% | -5/Factory | Broken Studied --------- Nuclear Pulse Thruster | -6/Factory | Hacked Lgt. Fission Core | -6/Factory | Hacked Lgt. Deuterium Engine | -5/Factory | Hacked Alien Tech Used ----------------- None Achievements -------------- None Challenges ------------ None Game ------ Seed HoverDispersionPropulsion Manual? 0 Play Time 02:33:44 Cumulative 754.8 hours Start 2025.12.08 @ 00:43:40 End 2025.12.08 @ 18:22:32 Sessions 2 Manual Loads 0 Difficulty Rogue Special Mode None Game No. 319 Rogue 319 Adventurer 0 Explorer 0 Win Type - Total 80 Types 41/5/14/6/6/1/1/3/0/3 Lore% 97 Gallery% 90 Achievement% 83 Wizard Run 0 Options --------- Layout 1 ASCII 0 Keyboard 0 Movement Numpad Keybinds 0 Fullscreen 1 Font 24/Smallcaps Map View 50x35 Zoom Use 0% Tactical HUD 1 Map Filters NONE Filters NONE Steam 1 RUN: 8e507daa-1089-47bb-ab25-061445cc0549